[Event "DVM U20w 2021"]
[Site "Kiel"]
[Date "2022.07.23"]
[Round "2"]
[White "Browning, Rebecca"]
[Black "Falke, Ornella"]
[Result "1/2-1/2"]
[ECO "B22"]
[WhiteElo "1938"]
[BlackElo "1912"]
[Annotator "TA"]
[PlyCount "66"]
[EventDate "2022.07.23"]
[EventType "team-tourn"]
[EventRounds "7"]
[EventCountry "GER"]
[SourceTitle "playchess.com"]
[Source "ChessBase"]
[SourceQuality "1"]
[TimeControl "40/5400+30:1800+30"]

{[%evp 13,66,-10,-14,-11,-8,-17,0,0,14,-5,7,0,0,-55,-58,-56,0,-4,-11,-10,-9,-5,-5,-67,-60,-93,-89,-102,-97,-135,-125,-127,-90,-90,-12,-12,-12,-9,-16,-54,-63,-94,-40,-39,-7,-10,0,-19,0,-24,0,-8,18,18,18]} 1. e4 {[%emt 0:00:05][%cal Be2e4,Be4e5][%mdl 32]} c5 {[%emt 0:00:07]} 2. c3 {[%emt 0:00:04]} Nf6 {[%emt 0:00:09]} 3. e5 {[%emt 0:00:04]} Nd5 {[%emt 0:00:10]} 4. d4 {[%emt 0:00:07]} cxd4 {[%emt 0:00:27]} 5. cxd4 {[%emt 0:00:04]} d6 {[%emt 0:01:12]} 6. exd6 {[%emt 0:00:10]} e6 {[%emt 0:02:38]} 7. Nf3 {[%emt 0:03:08]} Bxd6 {[%emt 0:00:13]} 8. Nc3 {[%emt 0:00:31] B22: Sicilian: 2 c3.} O-O {[%emt 0:01:28]} 9. Bd3 {[%emt 0:00:59]} Nc6 {[%emt 0:06:14]} 10. O-O {[%emt 0:00:51]} h6 {[%emt 0:10:36]} 11. Bb1 {[%emt 0:04:22] [#]} Nf6 $146 {[%emt 0:04:43]} ({Predecessor:} 11... Nce7 12. Qd3 f5 13. Re1 Nc6 14. a3 Qf6 15. Ba2 Nce7 16. Ne5 Rd8 17. Qf3 Bc7 {1-0 (50) Alomia Aldaz,F (1737)-Zambrano Acebo,J (1950) Manta 2017}) 12. a3 {[%emt 0:00:45]} Ne7 {[%emt 0:02:47]} 13. Qc2 {[%emt 0:03:09]} ({Better is} 13. Qd3 $11) 13... b6 $15 {[%emt 0:05:10]} 14. Ne4 {[%emt 0:00:44] White wants to mate with Nxf6+.} Ned5 {[%emt 0:00:23]} (14... Nf5 $15) 15. Qc6 {[%emt 0:01:21] [#]} Nxe4 {[%emt 0:10:12]} 16. Qxa8 {[%emt 0:04:05] [#]} Qd7 $1 {[%emt 0:01:37] Threatens to win with ...Nef6.} 17. Bxe4 {[%emt 0:00:36]} Ba6 {[%emt 0:00:16][%csl LRa8,LRf1]} 18. Qxf8+ {[%emt 0:02:05]} Kxf8 {[%emt 0:00:18]} 19. Rd1 {[%emt 0:00:59]} Qa4 $1 {[%emt 0:02:11]} 20. Bd2 {[%emt 0:01:45][%cal Od2b4] [#]} Nf6 $1 {[%emt 0:04:15]} 21. Re1 {[%emt 0:05:29]} Nxe4 {[%emt 0:02:03]} 22. Rxe4 {[%emt 0:00:08]} Qc2 {[%emt 0:00:50]} 23. Ree1 {[%emt 0:00:18] [#]} Qxb2 {[%emt 0:01:31]} (23... Bb7 $1 $17 {[%cal Rb7f3] White must now prevent ...Bxf3.} 24. Bb4 Bxb4 25. axb4 a6) 24. Bb4 $11 {[%emt 0:06:56]} Bxb4 {[%emt 0:06:26]} 25. axb4 {[%emt 0:04:42]} Bb7 {[%emt 0:01:48] aiming for ...Bxf3.} 26. Reb1 {[%emt 0:07:23]} Qc3 {[%emt 0:05:14]} 27. Rxa7 {[%emt 0:05:24]} Bxf3 {[%emt 0:04:17]} (27... Be4 $17 28. Rd1 f6) 28. gxf3 $15 {[%emt 0:00:07][%mdl 4096] Endgame KQ-KRR} g5 {[%emt 0:06:48]} 29. Kg2 {[%emt 0:00:22]} Qxd4 {[%emt 0:00:32]} 30. h3 {[%emt 0:00:42] Inhibits g4.} Kg7 {[%emt 0:01:20]} 31. Re1 {[%emt 0:02:20]} b5 {[%emt 0:05:21]} 32. Rc7 {[%emt 0:00:40]} Qxb4 {[%emt 0:03:13]} 33. Rxe6 {[%emt 0:01:45]} Qf4 {[%emt 0:02:33] Weighted Error Value: White=0.16 (very precise) /Black=0.16 (very precise)} 1/2-1/2

[Event "DVM U20w 2021"]
[Site "Kiel"]
[Date "2022.07.23"]
[Round "2"]
[White "Peglau, Mirjam"]
[Black "Mohammad Dawed, Lizan"]
[Result "1-0"]
[ECO "D02"]
[WhiteElo "1876"]
[BlackElo "799"]
[Annotator "NA RC COMBH"]
[PlyCount "71"]
[EventDate "2022.07.23"]
[EventType "team-tourn"]
[EventRounds "7"]
[EventCountry "GER"]
[SourceTitle "playchess.com"]
[Source "ChessBase"]
[SourceQuality "1"]
[TimeControl "40/5400+30:1800+30"]

1. d4 {[%emt 0:00:01]} d5 {[%emt 0:00:18]} 2. Nf3 {[%emt 0:00:07]} Bf5 {[%emt 0:00:16]} 3. Bf4 {[%emt 0:00:08]} e6 {[%emt 0:00:35]} 4. e3 {[%emt 0:00:16]} Nf6 {[%emt 0:01:14]} 5. Bd3 {[%emt 0:00:14]} Bxd3 {[%emt 0:00:48]} 6. Qxd3 {[%emt 0:00:02]} Ne4 {[%emt 0:00:28]} 7. O-O {[%emt 0:03:36]} Nd7 {[%emt 0:00:27]} 8. c4 {[%emt 0:00:34]} c6 {[%emt 0:00:42]} 9. Nc3 {[%emt 0:00:12]} g5 {[%emt 0:01:03]} 10. Bg3 {[%emt 0:01:07]} Nxg3 {[%emt 0:00:50]} 11. hxg3 {[%emt 0:00:05]} Be7 {[%emt 0:01:13]} 12. Rac1 {[%emt 0:00:53]} g4 {[%emt 0:00:28]} 13. Nd2 {[%emt 0:01:14]} h5 {[%emt 0:02:33]} 14. cxd5 {[%emt 0:00:06]} exd5 {[%emt 0:00:48]} 15. Qf5 {[%emt 0:02:10]} Nb6 {[%emt 0:01:48]} 16. f3 {[%emt 0:00:57]} h4 {[%emt 0:00:38]} 17. fxg4 {[%emt 0:00:18]} h3 {[%emt 0:02:32]} 18. Qxf7+ {[%emt 0:00:09]} Kd7 {[%emt 0:00:13]} 19. Qf5+ {[%emt 0:00:50]} Kc7 {[%emt 0:00:36]} 20. Nb5+ {[%emt 0:01:09]} Kb8 {[%emt 0:00:33]} 21. Qe5+ {[%emt 0:00:29]} Bd6 {[%emt 0:02:51]} 22. Nxd6 {[%emt 0:00:22]} Nd7 {[%emt 0:01:20]} 23. Qf4 {[%emt 0:01:07]} Rf8 {[%emt 0:03:41]} 24. Nf5+ {[%emt 0:01:39]} Kc8 {[%emt 0:01:31]} 25. gxh3 {[%emt 0:00:16]} Rf6 {[%emt 0:01:37]} 26. g5 {[%emt 0:01:10]} Rg6 {[%emt 0:01:22]} 27. h4 {[%emt 0:00:26]} Nf8 {[%emt 0:00:34]} 28. Nf3 {[%emt 0:01:43]} Ne6 {[%emt 0:00:34]} 29. Qe5 {[%emt 0:00:13]} Qc7 {[%emt 0:01:18]} 30. Qh8+ {[%emt 0:02:05]} Nd8 {[%emt 0:01:14]} 31. Ne5 {[%emt 0:01:41]} Re6 {[%emt 0:02:39]} 32. g6 {[%emt 0:00:12]} b6 {[%emt 0:01:35]} 33. g7 {[%emt 0:00:13]} Kb7 {[%emt 0:00:17]} 34. g8=Q {[%emt 0:00:08]} c5 {[%emt 0:00:36]} 35. Qgg7 {[%emt 0:02:17]} Nc6 {[%emt 0:01:43]} 36. Qxa8+ {[%emt 0:00:21]} 1-0

[Event "DVM U20w 2021"]
[Site "Kiel"]
[Date "2022.07.23"]
[Round "2"]
[White "Basovskiy, Jana"]
[Black "Rempe, Mieke"]
[Result "1-0"]
[ECO "B12"]
[WhiteElo "1867"]
[BlackElo "1646"]
[Annotator "NA RC COMBH"]
[PlyCount "75"]
[EventDate "2022.07.23"]
[EventType "team-tourn"]
[EventRounds "7"]
[EventCountry "GER"]
[SourceTitle "playchess.com"]
[Source "ChessBase"]
[SourceQuality "1"]
[TimeControl "40/5400+30:1800+30"]

1. e4 {[%emt 0:00:01]} c6 {[%emt 0:00:05]} 2. d4 {[%emt 0:00:04]} d5 {[%emt 0:00:05]} 3. e5 {[%emt 0:00:04]} Bf5 {[%emt 0:00:12]} 4. h4 {[%emt 0:00:05]} h5 {[%emt 0:00:48]} 5. Bg5 {[%emt 0:01:15]} Qb6 {[%emt 0:03:40]} 6. Bd3 {[%emt 0:00:23]} Bxd3 {[%emt 0:03:50]} 7. Qxd3 {[%emt 0:00:26]} Qxb2 {[%emt 0:11:02]} 8. e6 {[%emt 0:03:40]} Nf6 {[%emt 0:12:34]} 9. Nf3 {[%emt 0:04:44]} fxe6 {[%emt 0:06:56]} 10. Ne5 {[%emt 0:12:49]} Qxa1 {[%emt 0:10:56]} 11. Qg6+ {[%emt 0:00:15]} Kd8 {[%emt 0:00:05]} 12. Nf7+ {[%emt 0:00:09]} Kc8 {[%emt 0:02:42]} 13. O-O {[%emt 0:05:22]} Rg8 {[%emt 0:08:30]} 14. Bxf6 {[%emt 0:06:23]} exf6 {[%emt 0:00:19]} 15. Qh7 {[%emt 0:00:05]} Qxd4 {[%emt 0:05:17]} 16. Qxg8 {[%emt 0:02:29]} Nd7 {[%emt 0:01:24]} 17. Nh8 {[%emt 0:01:06]} Kc7 {[%emt 0:08:01]} 18. Qxe6 {[%emt 0:00:57]} Qxh4 {[%emt 0:00:53]} 19. Ng6 {[%emt 0:03:23]} Qg5 {[%emt 0:00:45]} 20. Nxf8 {[%emt 0:00:27]} Rxf8 {[%emt 0:00:58]} 21. Re1 {[%emt 0:01:10]} h4 {[%emt 0:01:52]} 22. Kf1 {[%emt 0:02:23]} Qf4 {[%emt 0:01:08]} 23. Kg1 {[%emt 0:06:06]} g5 {[%emt 0:01:56]} 24. Qh3 {[%emt 0:07:49]} Ne5 {[%emt 0:03:41]} 25. Qe6 {[%emt 0:00:30]} Ng4 {[%emt 0:03:13]} 26. Qe7+ {[%emt 0:02:09]} Kb6 {[%emt 0:00:05]} 27. f3 {[%emt 0:03:18]} Qh2+ {[%emt 0:00:32]} 28. Kf1 {[%emt 0:00:15]} Qh1+ {[%emt 0:00:04]} 29. Ke2 {[%emt 0:00:30]} Qxg2+ {[%emt 0:00:04]} 30. Kd1 {[%emt 0:00:26]} Qxf3+ {[%emt 0:00:32]} 31. Kc1 {[%emt 0:00:12]} Qf4+ {[%emt 0:01:18]} 32. Kb2 {[%emt 0:01:28]} Rh8 {[%emt 0:00:29]} 33. Nc3 {[%emt 0:02:22]} h3 {[%emt 0:00:33]} 34. Nxd5+ {[%emt 0:09:31]} cxd5 {[%emt 0:00:35]} 35. Re6+ {[%emt 0:00:12]} Ka5 {[%emt 0:11:59]} 36. Qc5+ {[%emt 0:00:16]} Ka4 {[%emt 0:00:37]} 37. Qxa7+ {[%emt 0:00:17]} Kb5 {[%emt 0:00:23]} 38. Qxb7+ {[%emt 0:04:20]} 1-0

[Event "DVM U20w 2021"]
[Site "Kiel"]
[Date "2022.07.23"]
[Round "2"]
[White "Muedder, Melanie"]
[Black "Hrebenshchykova, Yelyzaveta"]
[Result "0-1"]
[ECO "B47"]
[WhiteElo "1865"]
[BlackElo "2088"]
[Annotator "TA"]
[PlyCount "129"]
[EventDate "2022.07.23"]
[EventType "team-tourn"]
[EventRounds "7"]
[EventCountry "GER"]
[SourceTitle "playchess.com"]
[Source "ChessBase"]
[SourceQuality "1"]
[TimeControl "40/5400+30:1800+30"]

{[%evp 9,129,16,34,8,39,35,41,42,33,43,38,44,47,21,8,0,42,0,12,0,22,10,21,17,26,22,20,20,22,27,18,0,20,0,2,0,0,-6,-12,-11,-12,-52,-50,-52,-51,-57,-43,-43,0,-67,-49,-152,-152,-242,-168,-220,-144,-136,-32,-31,-31,-30,-28,-33,-31,-34,-32,-31,0,0,0,0,0,0,0,0,0,0,0,0,0,-85,-85,-85,-85,-85,-85,-85,-85,-85,-85,-85,-85,-85,-85,-29975,-29976,-29975,-29976,-5281,-1400,-29975,-29976,-29974,-29977,-29980,-29981,-29981,-29980,-29979,-29980,-29979,-29980,-29984,-29985,-29986,-29987,-29985,-29986,-29986,-29986,-29986]} 1. e4 {[%emt 0:00:03]} c5 {[%emt 0:00:14]} 2. Nf3 {[%emt 0:00:06]} e6 {[%emt 0:00:06]} 3. d4 {[%emt 0:00:18]} cxd4 {[%emt 0:00:05]} 4. Nxd4 {[%emt 0:00:06]} Nc6 {[%emt 0:00:04]} 5. Nc3 {[%emt 0:00:10]} Qc7 {[%emt 0:00:54]} 6. Qd3 {[%emt 0:00:31] B47: Sicilian: Taimanov: 5 Nc3 Qc7 6 f4, 6 g3 and 6 Be2.} a6 {[%emt 0:13:05] Against Ndb5} 7. Nxc6 {[%emt 0:00:12]} bxc6 {[%emt 0:09:59] 7...Qxc6 injects fresh life into this line.} 8. Qg3 {[%emt 0:02:56] White is slightly better.} Qxg3 {[%emt 0:06:18]} 9. hxg3 {[%emt 0:00:07]} d5 {[%emt 0:01:17]} 10. Na4 {[%emt 0:04:31] Hoping for Nb6.} Bb7 {[%emt 0:13:22]} 11. Be3 {[%emt 0:06:55]} Nf6 {[%emt 0:01:07][%cal Bg8f6,Bf6d7,Bd7e5][%mdl 32] [#]} 12. f3 $146 {[%emt 0:10:29]} ({Predecessor:} 12. exd5 cxd5 13. Nc5 Bc8 14. Be2 Nd7 15. Nxd7 Bxd7 16. c4 Bb4+ 17. Bd2 Bxd2+ 18. Kxd2 {½-½ (33) Pulpan,J (2414)-Panesso Rivera,H (2380) Pardubice 2019}) 12... Nd7 {[%emt 0:07:24]} 13. exd5 {[%emt 0:07:35]} cxd5 {[%emt 0:00:53]} 14. c4 {[%emt 0:04:09]} dxc4 {[%emt 0:09:31]} (14... Bc6 $5 {[%cal Rc6a4]} 15. Nc3 dxc4 $11) 15. Bxc4 {[%emt 0:02:54]} Rc8 {[%emt 0:00:05]} 16. Rc1 {[%emt 0:03:51]} Ne5 {[%emt 0:01:32]} 17. Be2 {[%emt 0:02:15]} Rxc1+ {[%emt 0:05:22]} 18. Bxc1 {[%emt 0:00:10]} Bd6 {[%emt 0:02:47]} 19. Kf2 {[%emt 0:07:47]} Ke7 {[%emt 0:00:21]} 20. Be3 {[%emt 0:02:18]} Nd7 {[%emt 0:01:12]} 21. Rh5 {[%emt 0:07:04]} f5 {[%emt 0:01:45]} 22. Rh4 {[%emt 0:06:21]} h6 {[%emt 0:02:51]} 23. Rc4 {[%emt 0:02:52]} Bd5 {[%emt 0:01:51]} 24. Rc1 {[%emt 0:04:20]} Bxa2 {[%emt 0:01:56]} 25. Bxa6 {[%emt 0:03:22]} Rb8 {[%emt 0:00:24]} 26. Bc4 {[%emt 0:03:43]} Bxc4 {[%emt 0:01:26]} 27. Rxc4 {[%emt 0:00:05]} Ne5 {[%emt 0:01:49]} 28. Rc3 {[%emt 0:03:56]} Nd7 {[%emt 0:02:04]} 29. b3 {[%emt 0:03:20]} (29. Rc4 $1 $11) 29... g5 {[%emt 0:00:54]} 30. f4 {[%emt 0:08:09] [#]} (30. Bd4 $15) 30... Nf6 $1 $17 {[%emt 0:01:14] aiming for ...Ne4+.} 31. Nc5 {[%emt 0:00:08]} (31. Rd3 $17) 31... Nd5 {[%emt 0:03:23]} 32. Rc4 {[%emt 0:01:59]} g4 {[%emt 0:03:32]} 33. Bd4 {[%emt 0:01:26]} h5 {[%emt 0:00:25]} ({Better is} 33... Rb5 $17 34. Ke2 Kf7) 34. Ra4 $15 {[%emt 0:01:54]} Rc8 {[%emt 0:05:51]} 35. Ra7+ {[%emt 0:00:30]} Rc7 {[%emt 0:00:04]} 36. Rxc7+ {[%emt 0:00:47]} Bxc7 $11 {[%emt 0:00:04][%mdl 4096] Endgame KBN-KBN} 37. Nd3 {[%emt 0:00:15]} Bd6 {[%emt 0:00:50]} 38. Ne5 {[%emt 0:00:34]} Bxe5 {[%emt 0:00:34]} 39. Bxe5 $15 {[%emt 0:00:22] KB-KN} Kd7 {[%emt 0:00:06]} 40. Ke2 {[%emt 0:00:36]} Kc6 {[%emt 0:01:22]} 41. Kd3 {[%emt 0:06:24]} Kb5 {[%emt 0:01:22]} 42. Bd6 {[%emt 0:02:38]} Nf6 {[%emt 0:05:15]} 43. Be7 {[%emt 0:05:52]} Ne4 {[%emt 0:02:52]} 44. Bh4 {[%emt 0:02:32]} Kc5 {[%emt 0:13:13]} 45. b4+ {[%emt 0:06:54] [#]} (45. Be7+ $11 {keeps the balance.} Kd5 46. Bh4) 45... Kd5 $1 $17 {[%emt 0:01:20]} ({Of course not} 45... Kxb4 $6 46. Kd4 Kb5 47. Ke5 $11) 46. b5 {[%emt 0:02:47]} Kc5 {[%emt 0:00:56]} 47. Ke3 {[%emt 0:03:36]} Kxb5 {[%emt 0:00:10]} 48. Kd4 {[%emt 0:00:07]} Kc6 {[%emt 0:00:04]} 49. Kc4 {[%emt 0:00:24]} Kc7 {[%emt 0:05:06]} 50. Kd3 {[%emt 0:03:17]} Kd7 {[%emt 0:00:15]} 51. Kc4 {[%emt 0:01:22]} Kc6 {[%emt 0:00:05]} 52. Kb4 $2 {[%emt 0:00:06][%mdl 8192] This move loses the game for White.} (52. Kd4 $17) 52... Kd5 {[%emt 0:02:06]} 53. Kb5 {[%emt 0:00:39]} Kd4 {[%emt 0:04:00]} 54. Kc6 {[%emt 0:00:12]} e5 {[%emt 0:00:58]} (54... Ke3 $142 55. Kd7 Kf2) 55. Kd7 {[%emt 0:00:50]} exf4 {[%emt 0:00:32] Black mates.} 56. gxf4 {[%emt 0:00:11]} Ke3 {[%emt 0:00:05]} 57. Bg5 {[%emt 0:01:17]} Kf2 {[%emt 0:00:28]} 58. Ke6 {[%emt 0:00:08]} Ng3 {[%emt 0:00:09]} 59. Kf6 {[%emt 0:00:47]} Kxg2 {[%emt 0:00:24]} 60. Kg6 {[%emt 0:00:04]} Kf3 {[%emt 0:00:23]} 61. Kf6 {[%emt 0:00:31]} Ne4+ {[%emt 0:00:58]} 62. Kxf5 {[%emt 0:00:13]} g3 {[%emt 0:00:03][%cal Bg4g3,Bg3g2][%mdl 32]} 63. Bd8 {[%emt 0:00:21]} g2 {[%emt 0:00:05]} 64. Bb6 {[%emt 0:00:06]} Nf2 {[%emt 0:00:03]} 65. Bc5 {[%emt 0:00:40] Weighted Error Value: White=0.34/Black=0.22 (precise)} 0-1

[Event "DVM U20w 2021"]
[Site "Kiel"]
[Date "2022.07.23"]
[Round "2"]
[White "Fock, Sana"]
[Black "Brunner, Sophia"]
[Result "1/2-1/2"]
[ECO "C04"]
[WhiteElo "1807"]
[BlackElo "1804"]
[Annotator "NA RC COMBH"]
[PlyCount "42"]
[EventDate "2022.07.23"]
[EventType "team-tourn"]
[EventRounds "7"]
[EventCountry "GER"]
[SourceTitle "playchess.com"]
[Source "ChessBase"]
[SourceQuality "1"]
[TimeControl "40/5400+30:1800+30"]

1. e4 {[%emt 0:00:02]} e6 {[%emt 0:00:06]} 2. d4 {[%emt 0:00:04]} d5 {[%emt 0:00:06]} 3. Nd2 {[%emt 0:00:04]} Nc6 {[%emt 0:00:17]} 4. c3 {[%emt 0:01:25]} e5 {[%emt 0:00:37]} 5. dxe5 {[%emt 0:06:07]} Nxe5 {[%emt 0:05:34]} 6. Ngf3 {[%emt 0:03:48]} Bg4 {[%emt 0:10:38]} 7. Be2 {[%emt 0:06:17]} Nxf3+ {[%emt 0:09:50]} 8. Bxf3 {[%emt 0:03:13]} Bxf3 {[%emt 0:00:58]} 9. Nxf3 {[%emt 0:04:40]} dxe4 {[%emt 0:00:29]} 10. Qa4+ {[%emt 0:00:13]} c6 {[%emt 0:00:09]} 11. Qxe4+ {[%emt 0:00:13]} Qe7 {[%emt 0:00:14]} 12. Qxe7+ {[%emt 0:00:40]} Nxe7 {[%emt 0:07:12]} 13. Nd4 {[%emt 0:04:52]} O-O-O {[%emt 0:02:10]} 14. O-O {[%emt 0:02:45]} Nd5 {[%emt 0:01:02]} 15. a4 {[%emt 0:08:03]} Bc5 {[%emt 0:03:56]} 16. Nb3 {[%emt 0:01:48]} Bd6 {[%emt 0:02:45]} 17. Bg5 {[%emt 0:03:59]} f6 {[%emt 0:00:48]} 18. Bd2 {[%emt 0:02:37]} Rhe8 {[%emt 0:00:20]} 19. Rfe1 {[%emt 0:01:15]} g6 {[%emt 0:02:54]} 20. h3 {[%emt 0:02:26]} Kd7 {[%emt 0:05:51]} 21. Kf1 {[%emt 0:05:42]} b6 {[%emt 0:09:43]} 1/2-1/2

[Event "DVM U20w 2021"]
[Site "Kiel"]
[Date "2022.07.23"]
[Round "2"]
[White "Peglau, Sarah"]
[Black "Tabakh, Najat"]
[Result "1-0"]
[ECO "D00"]
[WhiteElo "1782"]
[BlackElo "1313"]
[Annotator "NA RC COMBH"]
[PlyCount "79"]
[EventDate "2022.07.23"]
[EventType "team-tourn"]
[EventRounds "7"]
[EventCountry "GER"]
[SourceTitle "playchess.com"]
[Source "ChessBase"]
[SourceQuality "1"]
[TimeControl "40/5400+30:1800+30"]

1. g3 {[%emt 0:00:11]} d5 {[%emt 0:00:14]} 2. d4 {[%emt 0:01:15]} Nc6 {[%emt 0:00:31]} 3. Bg2 {[%emt 0:00:15]} Bf5 {[%emt 0:03:00]} 4. Bf4 {[%emt 0:03:34]} a6 {[%emt 0:04:34]} 5. e3 {[%emt 0:06:30]} e6 {[%emt 0:01:23]} 6. h4 {[%emt 0:01:43]} Nf6 {[%emt 0:05:47]} 7. c4 {[%emt 0:01:53]} Nb4 {[%emt 0:02:32]} 8. Na3 {[%emt 0:05:59]} Nd3+ {[%emt 0:04:18]} 9. Kf1 {[%emt 0:00:31]} Nxb2 {[%emt 0:01:13]} 10. Qb3 {[%emt 0:00:59]} Bxa3 {[%emt 0:04:02]} 11. Qxa3 {[%emt 0:00:27]} Nxc4 {[%emt 0:00:55]} 12. Qb4 {[%emt 0:01:06]} Nb6 {[%emt 0:01:42]} 13. a4 {[%emt 0:03:43]} Rb8 {[%emt 0:08:46]} 14. Rc1 {[%emt 0:04:11]} Nc4 {[%emt 0:04:01]} 15. Ne2 {[%emt 0:13:55]} Bd3 {[%emt 0:06:04]} 16. Rc3 {[%emt 0:02:57]} Be4 {[%emt 0:07:08]} 17. f3 {[%emt 0:01:50]} Bg6 {[%emt 0:09:31]} 18. e4 {[%emt 0:07:21]} Qd7 {[%emt 0:04:49]} 19. e5 {[%emt 0:06:33]} Nh5 {[%emt 0:02:25]} 20. Bc1 {[%emt 0:00:39]} f6 {[%emt 0:01:01]} 21. g4 {[%emt 0:00:22]} fxe5 {[%emt 0:00:19]} 22. gxh5 {[%emt 0:00:27]} exd4 {[%emt 0:00:21]} 23. Rxc4 {[%emt 0:02:20]} dxc4 {[%emt 0:00:15]} 24. hxg6 {[%emt 0:00:19]} hxg6 {[%emt 0:00:11]} 25. Qxc4 {[%emt 0:02:10]} d3 {[%emt 0:00:25]} 26. Nd4 {[%emt 0:00:24]} e5 {[%emt 0:00:36]} 27. Qe6+ {[%emt 0:08:59]} Qxe6 {[%emt 0:01:47]} 28. Nxe6 {[%emt 0:00:03]} Ke7 {[%emt 0:01:48]} 29. Bh3 {[%emt 0:03:29]} b5 {[%emt 0:01:49]} 30. axb5 {[%emt 0:02:06]} Rxb5 {[%emt 0:00:25]} 31. Nxc7 {[%emt 0:00:48]} Rb1 {[%emt 0:00:27]} 32. Kg2 {[%emt 0:00:49]} Rb3 {[%emt 0:01:30]} 33. Nxa6 {[%emt 0:04:42]} Rd8 {[%emt 0:01:24]} 34. Bg5+ {[%emt 0:03:02]} Ke8 {[%emt 0:00:22]} 35. Nc7+ {[%emt 0:00:46]} Kf8 {[%emt 0:00:50]} 36. Ne6+ {[%emt 0:02:45]} Kg8 {[%emt 0:00:33]} 37. Nxd8 {[%emt 0:00:10]} Rb4 {[%emt 0:01:30]} 38. Nc6 {[%emt 0:04:10]} Rb2+ {[%emt 0:00:43]} 39. Kg3 {[%emt 0:00:14]} Rb5 {[%emt 0:01:22]} 40. Rd1 {[%emt 0:00:17]} 1-0

[Event "DVM U20w 2021"]
[Site "Kiel"]
[Date "2022.07.23"]
[Round "2"]
[White "Sereda, Yaroslava"]
[Black "Albayrak, Berrak"]
[Result "1/2-1/2"]
[ECO "B07"]
[WhiteElo "1781"]
[BlackElo "1592"]
[Annotator "NA RC COMBH"]
[PlyCount "119"]
[EventDate "2022.07.23"]
[EventType "team-tourn"]
[EventRounds "7"]
[EventCountry "GER"]
[SourceTitle "playchess.com"]
[Source "ChessBase"]
[SourceQuality "1"]
[TimeControl "40/5400+30:1800+30"]

1. e4 {[%emt 0:00:02]} d6 {[%emt 0:00:05]} 2. d4 {[%emt 0:00:10]} Nf6 {[%emt 0:00:05]} 3. Nc3 {[%emt 0:00:10]} g6 {[%emt 0:00:06]} 4. Be3 {[%emt 0:00:29]} c6 {[%emt 0:00:40]} 5. Qd2 {[%emt 0:02:49]} b5 {[%emt 0:00:56]} 6. f3 {[%emt 0:02:53]} Qa5 {[%emt 0:01:35]} 7. O-O-O {[%emt 0:20:16]} Nbd7 {[%emt 0:18:39]} 8. d5 {[%emt 0:09:20]} b4 {[%emt 0:12:54]} 9. dxc6 {[%emt 0:06:06]} bxc3 {[%emt 0:01:05]} 10. cxd7+ {[%emt 0:00:11]} Bxd7 {[%emt 0:01:14]} 11. Qxc3 {[%emt 0:00:53]} Qxa2 {[%emt 0:09:28]} 12. Bc4 {[%emt 0:02:38]} Qa1+ {[%emt 0:06:18]} 13. Kd2 {[%emt 0:00:12]} Qa4 {[%emt 0:00:14]} 14. Bb3 {[%emt 0:18:20]} Qc6 {[%emt 0:12:17]} 15. Qxc6 {[%emt 0:01:08]} Bxc6 {[%emt 0:00:06]} 16. Ra1 {[%emt 0:00:51]} a6 {[%emt 0:03:05]} 17. Ne2 {[%emt 0:01:38]} Nd7 {[%emt 0:03:06]} 18. Bc4 {[%emt 0:08:00]} Bg7 {[%emt 0:08:05]} 19. c3 {[%emt 0:02:02]} Rb8 {[%emt 0:07:06]} 20. Rxa6 {[%emt 0:08:01]} Ne5 {[%emt 0:01:41]} 21. b3 {[%emt 0:01:52]} O-O {[%emt 0:05:40]} 22. Bd4 {[%emt 0:04:49]} Nxc4+ {[%emt 0:03:10]} 23. bxc4 {[%emt 0:00:07]} Rb2+ {[%emt 0:01:24]} 24. Kd3 {[%emt 0:00:48]} Bd7 {[%emt 0:00:51]} 25. Ra7 {[%emt 0:06:53]} Be6 {[%emt 0:01:16]} 26. Bxg7 {[%emt 0:00:32]} Kxg7 {[%emt 0:00:05]} 27. Nf4 {[%emt 0:00:25]} Kf6 {[%emt 0:01:07]} 28. Nd5+ {[%emt 0:01:16]} Bxd5 {[%emt 0:00:24]} 29. cxd5 {[%emt 0:00:29]} Rxg2 {[%emt 0:01:01]} 30. Ra6 {[%emt 0:01:23]} Rb8 {[%emt 0:01:03]} 31. f4 {[%emt 0:00:34]} Kg7 {[%emt 0:00:41]} 32. Ra7 {[%emt 0:00:15]} Kf6 {[%emt 0:00:18]} 33. Ra6 {[%emt 0:00:46]} Rd8 {[%emt 0:00:27]} 34. e5+ {[%emt 0:00:29]} Kf5 {[%emt 0:00:11]} 35. exd6 {[%emt 0:00:15]} Rxd6 {[%emt 0:00:57]} 36. Rxd6 {[%emt 0:00:32]} exd6 {[%emt 0:00:03]} 37. Kc4 {[%emt 0:00:36]} Rd2 {[%emt 0:00:42]} 38. h4 {[%emt 0:00:29]} h6 {[%emt 0:00:47]} 39. h5 {[%emt 0:00:32]} Kxf4 {[%emt 0:00:36]} 40. hxg6 {[%emt 0:00:43]} fxg6 {[%emt 0:00:23]} 41. Rxh6 {[%emt 0:30:23]} Kf5 {[%emt 0:11:05]} 42. Rh8 {[%emt 0:00:00]} Rb2 {[%emt 0:05:26]} 43. Rd8 {[%emt 0:00:00]} Rb6 {[%emt 0:02:48]} 44. Rc8 {[%emt 0:00:00]} Rb7 {[%emt 0:00:59]} 45. Kd4 {[%emt 0:00:00]} Kf6 {[%emt 0:04:42]} 46. Re8 {[%emt 0:00:00]} Rd7 {[%emt 0:06:39]} 47. Re6+ {[%emt 0:00:00]} Kf5 {[%emt 0:00:59]} 48. c4 {[%emt 0:00:00]} g5 {[%emt 0:00:28]} 49. Re8 {[%emt 0:00:00]} g4 {[%emt 0:01:16]} 50. Rf8+ {[%emt 0:00:00]} Kg5 {[%emt 0:00:31]} 51. c5 {[%emt 0:04:54]} dxc5+ {[%emt 0:00:32]} 52. Kxc5 {[%emt 0:00:07]} g3 {[%emt 0:00:35]} 53. Rg8+ {[%emt 0:00:30]} Kf4 {[%emt 0:00:30]} 54. Kc6 {[%emt 0:00:10]} Rf7 {[%emt 0:00:30]} 55. d6 {[%emt 0:00:31]} Kf3 {[%emt 0:00:20]} 56. d7 {[%emt 0:01:00]} Rxd7 {[%emt 0:00:06]} 57. Kxd7 {[%emt 0:00:26]} g2 {[%emt 0:00:38]} 58. Ke6 {[%emt 0:00:40]} Kf2 {[%emt 0:00:11]} 59. Rf8+ {[%emt 0:00:17]} Kg3 {[%emt 0:00:45]} 60. Kd5 {[%emt 0:01:05]} 1/2-1/2